fUSD/lending_fUSD_20250209
["ID","MTS","AMOUNT","RATE_DAILY","PERIOD"]
[352366979,1739064640091,-500.0,0.00010134,2]
[352366981,1739064640104,-500.0,0.00010134,2]
[352366983,1739064640113,-500.0,0.00010134,2]
[352366985,1739064640122,-500.0,0.00010134,2]
[352366988,1739064640131,-500.0,0.00010134,2]
[352366989,1739064640141,-500.0,0.00010134,2]
[352366992,1739064640151,-500.0,0.00010134,2]
[352366994,1739064640160,-500.0,0.00010134,2]
[352366996,1739064640169,-194.52731432,0.00010134,2]
[352366998,1739064640179,-500.0,0.00010134,2]
[352367000,1739064640188,-500.0,0.00010134,2]
[352367002,1739064640196,-500.0,0.00010134,2]
[352367003,1739064640206,-500.0,0.00010134,2]
[352367005,1739064640215,-500.0,0.00010134,2]
[352367007,1739064640224,-500.0,0.00010134,2]
[352367009,1739064640233,-500.0,0.00010134,2]
[352367011,1739064640243,-500.0,0.00010134,2]
[352367013,1739064640252,-500.0,0.00010135,2]
[352367015,1739064640261,-599.98,0.00010135,2]
[352367017,1739064640271,-500.0,0.00010136,2]
[352367019,1739064640281,-500.0,0.00010136,2]
[352367021,1739064640290,-500.0,0.00010136,2]
[352367023,1739064640299,-500.0,0.00010136,2]
[352367025,1739064640309,-500.0,0.00010136,2]
[352367027,1739064640318,-500.0,0.00010136,2]
[352367029,1739064640327,-500.0,0.00010136,2]
[352367031,1739064640336,-500.0,0.00010136,2]
[352367033,1739064640346,-500.0,0.00010136,2]
[352367035,1739064640355,-500.0,0.00010136,2]
[352367037,1739064640365,-500.0,0.00010136,2]
[352367039,1739064640374,-500.0,0.00010136,2]
[352367041,1739064640384,-500.0,0.00010136,2]
[352367043,1739064640394,-500.0,0.00010136,2]
[352367045,1739064640404,-500.0,0.00010136,2]
[352367047,1739064640414,-500.0,0.00010136,2]
[352367049,1739064640423,-500.0,0.00010136,2]
[352367051,1739064640433,-500.0,0.00010136,2]
[352367053,1739064640443,-500.0,0.00010136,2]
[352367055,1739064640452,-500.0,0.00010136,2]
[352367057,1739064640461,-500.0,0.00010136,2]
[352367059,1739064640471,-500.0,0.00010136,2]
[352367061,1739064640479,-500.0,0.00010136,2]
[352367063,1739064640488,-500.0,0.00010136,2]
[352367065,1739064640498,-500.0,0.00010136,2]
[352367067,1739064640507,-500.0,0.00010136,2]
[352367069,1739064640517,-500.0,0.00010136,2]
[352367071,1739064640527,-500.0,0.00010136,2]
[352367073,1739064640536,-500.0,0.00010136,2]
[352367075,1739064640545,-500.0,0.00010136,2]
[352367077,1739064640555,-500.0,0.00010136,2]
[352367079,1739064640564,-500.0,0.00010136,2]
[352367081,1739064640574,-500.0,0.00010136,2]
[352367083,1739064640586,-500.0,0.00010136,2]
[352367085,1739064640595,-500.0,0.00010136,2]
[352367087,1739064640605,-500.0,0.00010136,2]
[352367090,1739064640615,-500.0,0.00010136,2]
[352367092,1739064640625,-500.0,0.00010136,2]
[352367093,1739064640634,-500.0,0.00010136,2]
[352367096,1739064640644,-500.0,0.00010136,2]
[352367098,1739064640655,-500.0,0.00010136,2]
[352367100,1739064640664,-500.0,0.00010136,2]
[352367102,1739064640673,-500.0,0.00010136,2]
[352367104,1739064640685,-500.0,0.00010136,2]
[352367106,1739064640695,-500.0,0.00010136,2]
[352367108,1739064640704,-500.0,0.00010136,2]
[352367110,1739064640713,-500.0,0.00010136,2]
[352367112,1739064640723,-500.0,0.00010136,2]
[352367114,1739064640734,-500.0,0.00010136,2]
[352367116,1739064640743,-500.0,0.00010136,2]
[352367118,1739064640752,-500.0,0.00010136,2]
[352367120,1739064640762,-500.0,0.00010136,2]
[352367122,1739064640772,-500.0,0.00010136,2]
[352367124,1739064640781,-504.60676551,0.00010136,2]
[352367126,1739064640790,-500.0,0.00010136,2]
[352367128,1739064640800,-500.0,0.00010136,2]
[352367130,1739064640809,-500.0,0.00010136,2]
[352367132,1739064640818,-500.0,0.00010136,2]
[352367134,1739064640827,-500.0,0.00010136,2]
[352367136,1739064640837,-500.0,0.00010136,2]
[352367138,1739064640846,-500.0,0.00010136,2]
[352367140,1739064640855,-500.0,0.00010136,2]
[352367142,1739064640864,-500.0,0.00010136,2]
[352367144,1739064640873,-500.0,0.00010136,2]
[352367146,1739064640882,-500.0,0.00010136,2]
[352367148,1739064640892,-500.0,0.00010136,2]
[352367150,1739064640902,-500.0,0.00010136,2]
[352367152,1739064640912,-500.0,0.00010136,2]
[352367154,1739064640922,-500.0,0.00010136,2]
[352367156,1739064640932,-500.0,0.00010136,2]
[352367158,1739064640941,-500.0,0.00010136,2]
[352367160,1739064640951,-500.0,0.00010136,2]
[352367162,1739064640960,-500.0,0.00010136,2]
[352367164,1739064640970,-500.0,0.00010136,2]
[352367166,1739064640979,-500.0,0.00010136,2]
[352367168,1739064640988,-500.0,0.00010136,2]
[352367170,1739064640997,-524.96,0.00010136,2]
[352367172,1739064641007,-500.0,0.00010136,2]
[352367174,1739064641016,-538.42,0.00010136,2]
[352367176,1739064641026,-500.0,0.00010136,2]
[352367178,1739064641035,-500.0,0.00010136,2]
[352367180,1739064641044,-500.0,0.00010136,2]
[352367182,1739064641054,-517.99,0.00010136,2]
[352367184,1739064641063,-500.0,0.00010136,2]
[352367186,1739064641073,-413.00138426,0.00010136,2]
[352367188,1739064641087,-86.99861574,0.00010136,2]
[352367190,1739064641097,-500.0,0.00010136,2]
[352367193,1739064641107,-500.0,0.00010136,2]
[352367195,1739064641117,-500.0,0.00010136,2]
[352367197,1739064641127,-500.0,0.00010136,2]
[352367199,1739064641137,-500.0,0.00010136,2]
[352367201,1739064641147,-500.0,0.00010136,2]
[352367203,1739064641158,-357.43,0.00010137,2]
[352367205,1739064641167,-506.0,0.00010164,2]
[352367207,1739064641178,-500.0,0.00010173,2]
[352367209,1739064641187,-500.0,0.00010173,2]
[352367211,1739064641198,-145.57138426,0.00010173,2]
[352367215,1739064641226,-356.36032703,0.00010173,2]
[352367217,1739064641236,-307.91678054,0.00010173,2]
[352367219,1739064641246,-152.62209611,0.00010173,2]
[352367221,1739064641256,-500.0,0.00010173,2]
[352367224,1739064641266,-150.0,0.00010174,2]
[352367226,1739064641276,-300.0,0.00010174,2]
[352367228,1739064641286,-438.71,0.00010174,2]
[352367230,1739064641296,-438.71,0.00010174,2]
[352367232,1739064641306,-150.0,0.00010174,2]
[352367234,1739064641316,-150.0,0.00010174,2]
[352367236,1739064641326,-438.71,0.00010174,2]
[352367238,1739064641335,-150.0,0.00010174,2]
[352367240,1739064641345,-438.71,0.00010174,2]
[352367242,1739064641355,-438.71,0.00010174,2]
[352367244,1739064641364,-150.0,0.00010174,2]
[352367246,1739064641374,-150.0,0.00010174,2]
[352367248,1739064641383,-438.17,0.00010174,2]
[352367250,1739064641393,-500.0,0.00010199,2]
[352367252,1739064641403,-500.91379495,0.00010199,2]
[352367254,1739064641413,-500.0,0.00010199,2]
[352367256,1739064641423,-500.0,0.00010199,2]
[352367258,1739064641433,-500.0,0.00010199,2]
[352367260,1739064641443,-500.0,0.00010199,2]
[352367262,1739064641453,-225650.7371707,0.000102,2]
[352367263,1739064641479,-500.0,0.0001013,2]
[352367264,1739064641489,-2764.57238243,0.000102,2]
[352367292,1739064642749,-973.46694,0.0001,2]
[352367293,1739064642759,-330.71068728,0.00010033,2]
[352367294,1739064642769,-503.53417937,0.0001013,2]
[352367295,1739064642778,-502.99762383,0.0001013,2]
[352367296,1739064642788,-500.0,0.00010132,2]
[352367297,1739064642798,-500.0,0.00010132,2]
[352367298,1739064642807,-634.68410027,0.00010132,2]
[352367299,1739064642817,-500.0,0.00010133,2]
[352367300,1739064642826,-188048.73548067,0.000102,2]
[352367301,1739064642836,-151.0,0.000102,2]
[352367302,1739064642845,-151.0,0.000102,2]
[352367303,1739064642855,-151.0,0.000102,2]
[352367304,1739064642864,-151.0,0.000102,2]
[352367305,1739064642873,-151.0,0.000102,2]
[352367306,1739064642883,-151.0,0.000102,2]
[352367307,1739064642892,-161.18732624,0.000102,2]
[352367308,1739064642902,-305.58301438,0.00010259,2]
[352367309,1739064642912,-440.48,0.0001026,2]
[352367310,1739064642925,-166.0,0.00010263,2]
[352367311,1739064642934,-500.0,0.00010267,2]
[352367312,1739064642943,-500.0,0.00010267,2]
[352367313,1739064642953,-500.0,0.00010267,2]
[352367314,1739064642964,-1135.49,0.00010267,2]
[352367315,1739064642974,-1491.25,0.00010267,2]
[352367316,1739064642984,-500.0,0.00010267,2]
[352367317,1739064642995,-1096.4,0.00010267,2]
[352367318,1739064643005,-1926.31,0.00010267,2]
[352367319,1739064643016,-1553.33,0.00010267,2]
[352367320,1739064643025,-524.3,0.00010267,2]
[352367321,1739064643035,-1505.29,0.00010267,2]
[352367322,1739064643045,-500.0,0.00010267,2]
[352367323,1739064643055,-500.0,0.00010267,2]
[352367324,1739064643066,-765.69,0.00010267,2]
[352367325,1739064643077,-500.0,0.00010267,2]
[352367326,1739064643087,-500.0,0.00010267,2]
[352367327,1739064643096,-500.0,0.00010267,2]
[352367328,1739064643109,-500.0,0.00010267,2]
[352367329,1739064643119,-1250.11,0.00010267,2]
[352367330,1739064643129,-500.0,0.00010267,2]
[352367332,1739064643138,-500.0,0.00010267,2]
[352367334,1739064643147,-500.0,0.00010267,2]
[352367335,1739064643156,-1265.23,0.00010268,2]
[352367336,1739064643166,-942.17,0.00010268,2]
[352367337,1739064643176,-571.56,0.00010268,2]
[352367338,1739064643186,-608.72,0.00010268,2]
[352367339,1739064643196,-903.56,0.00010268,2]
[352367340,1739064643205,-761.356549,0.00010268,2]
[352367341,1739064643214,-500.0,0.00010268,2]
[352367342,1739064643223,-500.0,0.00010268,2]
[352367343,1739064643233,-1567.35,0.00010268,2]
[352367344,1739064643243,-500.0,0.00010268,2]
[352367345,1739064643253,-500.0,0.00010268,2]
[352367346,1739064643262,-1529.17,0.00010268,2]
[352367347,1739064643271,-820.43,0.00010268,2]
[352367348,1739064643281,-2229.24,0.00010268,2]
[352367349,1739064643290,-614.12,0.00010268,2]
[352367350,1739064643300,-635.519756,0.00010268,2]
[352367351,1739064643309,-824.85,0.00010268,2]
[352367352,1739064643319,-1108.77,0.00010268,2]
[352367353,1739064643328,-500.0,0.00010268,2]
[352367354,1739064643337,-500.0,0.00010268,2]
[352367355,1739064643347,-1431.97,0.00010268,2]
[352367356,1739064643357,-1577.26,0.00010268,2]
[352367357,1739064643366,-750.94,0.00010268,2]
[352367358,1739064643376,-1128.64,0.00010268,2]
[352367359,1739064643385,-985.47,0.00010268,2]
[352367360,1739064643394,-1364.15,0.00010268,2]
[352367361,1739064643403,-2826.52,0.00010268,2]
[352367362,1739064643413,-2171.01,0.00010268,2]
[352367363,1739064643422,-1345.65,0.00010268,2]
[352367364,1739064643432,-757.14,0.00010268,2]
[352367365,1739064643442,-500.0,0.00010268,2]
[352367366,1739064643451,-500.0,0.00010268,2]
[352367367,1739064643460,-1180.09,0.00010268,2]
[352367368,1739064643470,-500.0,0.00010268,2]
[352367369,1739064643479,-500.0,0.00010268,2]
[352367370,1739064643488,-150.431627,0.00010268,2]
[352367371,1739064643497,-1527.24,0.00010268,2]
[352367372,1739064643506,-1297.73,0.00010268,2]
[352367373,1739064643516,-879.7,0.00010268,2]
[352367374,1739064643526,-500.0,0.00010268,2]
[352367375,1739064643535,-661.94,0.00010268,2]
[352367376,1739064643544,-1376.76,0.00010268,2]
[352367377,1739064643553,-500.0,0.00010268,2]
[352367378,1739064643563,-1567.33,0.00010268,2]
[352367379,1739064643572,-506.91394512,0.00010268,2]
[352367380,1739064643581,-500.0,0.00010268,2]
[352367381,1739064643591,-1076.91,0.00010268,2]
[352367382,1739064643600,-2050.57,0.00010268,2]
[352367383,1739064643609,-593.35,0.00010268,2]
[352367384,1739064643618,-500.0,0.00010269,2]
[352367385,1739064643628,-650.17,0.00010269,2]
[352367386,1739064643637,-500.0,0.00010269,2]
[352367387,1739064643647,-538.9094133,0.00010269,2]
[352367388,1739064643657,-500.0,0.00010269,2]
[352367389,1739064643666,-500.0,0.00010269,2]
[352367390,1739064643676,-500.0,0.00010269,2]
[352367391,1739064643690,-500.0,0.00010269,2]
[352367392,1739064643699,-500.0,0.00010269,2]
[352367393,1739064643710,-676.84,0.00010269,2]
[352367394,1739064643720,-500.0,0.00010269,2]
[352367395,1739064643730,-500.0,0.00010269,2]
[352367396,1739064643739,-500.0,0.00010269,2]
[352367397,1739064643749,-500.0,0.00010269,2]
[352367398,1739064643758,-546.96,0.00010269,2]
[352367399,1739064643768,-500.0,0.00010269,2]
[352367400,1739064643778,-500.0,0.00010269,2]
[352367401,1739064643788,-500.0,0.00010269,2]
[352367402,1739064643797,-500.0,0.00010269,2]
[352367403,1739064643807,-500.0,0.00010269,2]
[352367404,1739064643816,-500.0,0.00010269,2]
[352367405,1739064643826,-500.0,0.00010269,2]
[352367406,1739064643835,-576.95,0.00010269,2]
[352367407,1739064643846,-500.0,0.00010269,2]
[352367408,1739064643855,-500.0,0.00010269,2]
[352367409,1739064643864,-500.0,0.00010269,2]
[352367410,1739064643874,-500.0,0.00010269,2]
[352367411,1739064643883,-500.0,0.00010269,2]
[352367412,1739064643894,-500.0,0.00010269,2]
[352367413,1739064643905,-500.0,0.00010269,2]
[352367414,1739064643915,-500.0,0.00010269,2]
[352367415,1739064643925,-525.03,0.00010269,2]
[352367416,1739064643935,-500.0,0.00010269,2]
[352367417,1739064643944,-688.22,0.00010269,2]
[352367418,1739064643955,-500.0,0.00010269,2]
[352367419,1739064643964,-500.0,0.00010269,2]
[352367420,1739064643974,-500.0,0.00010269,2]
[352367421,1739064643983,-500.0,0.00010269,2]
[352367422,1739064643993,-751.95,0.00010269,2]
[352367423,1739064644003,-500.0,0.00010269,2]
[352367424,1739064644015,-500.0,0.00010269,2]
[352367425,1739064644026,-500.0,0.00010269,2]
[352367426,1739064644037,-500.0,0.00010269,2]
[352367427,1739064644046,-500.0,0.00010269,2]
[352367428,1739064644056,-500.0,0.00010269,2]
[352367429,1739064644066,-500.0,0.00010269,2]
[352367430,1739064644077,-521.85,0.00010269,2]
[352367431,1739064644087,-500.0,0.00010269,2]
[352367432,1739064644096,-751.58,0.00010269,2]
[352367433,1739064644106,-500.0,0.00010269,2]
[352367434,1739064644115,-500.0,0.00010269,2]
[352367435,1739064644123,-500.0,0.00010269,2]
[352367436,1739064644133,-713.69,0.00010269,2]
[352367437,1739064644142,-500.0,0.00010269,2]
[352367438,1739064644151,-500.0,0.00010269,2]
[352367439,1739064644161,-500.0,0.00010269,2]
[352367440,1739064644170,-500.0,0.00010269,2]
[352367441,1739064644179,-500.0,0.00010269,2]
[352367442,1739064644189,-500.0,0.00010269,2]
[352367443,1739064644198,-743.85,0.00010269,2]
[352367444,1739064644207,-500.0,0.00010269,2]
[352367445,1739064644217,-778.11,0.00010269,2]
[352367446,1739064644226,-500.0,0.00010269,2]
[352367447,1739064644235,-500.0,0.00010269,2]
[352367448,1739064644245,-686.06,0.00010269,2]
[352367449,1739064644254,-500.0,0.00010269,2]
[352367450,1739064644263,-500.0,0.00010269,2]
[352367451,1739064644272,-500.0,0.00010269,2]
[352367452,1739064644281,-500.0,0.00010269,2]
[352367453,1739064644291,-500.0,0.00010269,2]
[352367454,1739064644300,-640.12,0.00010269,2]
[352367455,1739064644310,-625.79,0.00010269,2]
[352367456,1739064644319,-500.0,0.00010269,2]
[352367457,1739064644332,-500.0,0.00010269,2]
[352367458,1739064644341,-500.0,0.00010269,2]
[352367459,1739064644351,-620.92,0.00010269,2]
[352367460,1739064644360,-677.96,0.00010269,2]
[352367461,1739064644369,-500.0,0.00010269,2]
[352367462,1739064644378,-500.0,0.00010269,2]
[352367463,1739064644388,-500.0,0.00010269,2]
[352367464,1739064644397,-500.0,0.00010269,2]
[352367465,1739064644408,-500.0,0.00010269,2]
[352367466,1739064644417,-500.0,0.00010269,2]
[352367467,1739064644427,-500.0,0.00010269,2]
[352367468,1739064644437,-2934.3,0.00010269,2]
[352367469,1739064644446,-500.0,0.00010269,2]
[352367470,1739064644456,-500.0,0.00010269,2]
[352367471,1739064644465,-500.0,0.00010269,2]
[352367472,1739064644475,-1525.17,0.00010269,2]
[352367473,1739064644485,-774.95,0.00010269,2]
[352367474,1739064644496,-1829.66,0.00010269,2]
[352367475,1739064644506,-789.04,0.00010269,2]
[352367476,1739064644515,-500.0,0.00010269,2]
[352367477,1739064644525,-997.18,0.00010269,2]
[352367478,1739064644534,-1816.27,0.00010269,2]
[352367479,1739064644544,-500.0,0.00010269,2]
[352367480,1739064644554,-1562.18,0.00010269,2]
[352367481,1739064644563,-680.61,0.00010269,2]
[352367482,1739064644573,-500.0,0.00010269,2]
[352367483,1739064644583,-500.0,0.00010269,2]
[352367484,1739064644592,-1099.38,0.00010269,2]
[352367485,1739064644602,-500.0,0.00010269,2]
[352367486,1739064644611,-500.0,0.00010269,2]
[352367487,1739064644620,-533.58,0.00010269,2]
[352367488,1739064644629,-1750.36,0.00010269,2]
[352367489,1739064644639,-500.0,0.00010269,2]
[352367490,1739064644649,-500.0,0.00010269,2]
[352367491,1739064644658,-500.0,0.00010269,2]
[352367492,1739064644667,-1168.81,0.00010269,2]
[352367493,1739064644677,-500.0,0.00010269,2]
[352367494,1739064644691,-919.27,0.00010269,2]
[352367495,1739064644700,-500.0,0.00010269,2]
[352367496,1739064644709,-635.21,0.00010269,2]
[352367497,1739064644719,-500.0,0.00010269,2]
[352367498,1739064644729,-500.0,0.00010269,2]
[352367499,1739064644739,-500.0,0.00010269,2]
[352367500,1739064644749,-2329.56,0.00010269,2]
[352367501,1739064644759,-841.19,0.00010269,2]
[352367502,1739064644770,-232.20190516,0.00010269,2]
[352367503,1739064644780,-731.35,0.00010269,2]
[352367504,1739064644790,-830.41,0.00010269,2]
[352367505,1739064644799,-880.9,0.00010269,2]
[352367506,1739064644809,-500.0,0.00010269,2]
[352367507,1739064644819,-500.0,0.00010269,2]
[352367508,1739064644828,-523.25,0.00010269,2]
[352367509,1739064644840,-500.0,0.00010269,2]
[352367510,1739064644849,-565.26,0.00010269,2]
[352367511,1739064644859,-610.98,0.00010269,2]
[352367512,1739064644868,-500.0,0.00010269,2]
[352367513,1739064644878,-500.0,0.00010269,2]
[352367514,1739064644887,-1181.58,0.00010269,2]
[352367515,1739064644897,-500.0,0.00010269,2]
[352367516,1739064644911,-2957.55,0.00010269,2]
[352367517,1739064644920,-1035.92,0.00010269,2]
[352367518,1739064644930,-500.0,0.00010269,2]
[352367519,1739064645004,-525.11,0.00010269,2]
[352367520,1739064645014,-1347.93,0.00010269,2]
[352367521,1739064645024,-666.15,0.00010269,2]
[352367522,1739064645034,-500.0,0.00010269,2]
[352367523,1739064645043,-1814.49,0.00010269,2]
[352367524,1739064645053,-338.8535558,0.00010269,2]
[352367525,1739064645063,-500.0,0.00010269,2]
[352367526,1739064645072,-213.75424223,0.0001027,2]
[352367527,1739064645081,-622.44,0.0001027,2]
[352367528,1739064645090,-500.0,0.0001027,2]
[352367529,1739064645099,-500.0,0.0001027,2]
[352367530,1739064645108,-500.0,0.0001027,2]
[352367531,1739064645118,-500.0,0.0001027,2]
[352367532,1739064645127,-411.45209465,0.0001027,2]
[352367533,1739064645136,-500.0,0.0001027,2]
[352367534,1739064645145,-500.0,0.0001027,2]
[352367535,1739064645156,-500.0,0.0001027,2]
[352367536,1739064645166,-500.0,0.0001027,2]
[352367537,1739064645175,-509.27102398,0.0001027,2]
[352367538,1739064645184,-500.0,0.0001027,2]
[352367539,1739064645195,-500.0,0.0001027,2]
[352367540,1739064645204,-500.0,0.0001027,2]
[352367541,1739064645213,-500.0,0.0001027,2]
[352367542,1739064645222,-500.0,0.0001027,2]
[352367543,1739064645231,-500.0,0.0001027,2]
[352367544,1739064645240,-490.54957091,0.0001027,2]
[352367545,1739064645251,-500.0,0.0001027,2]
[352367546,1739064645259,-500.0,0.0001027,2]
[352367547,1739064645268,-500.0,0.0001027,2]
[352367548,1739064645277,-245.20971274,0.0001027,2]
[352367549,1739064645287,-500.0,0.0001027,2]
[352367550,1739064645296,-500.0,0.0001027,2]
[352367551,1739064645305,-500.0,0.0001027,2]
[352367552,1739064645314,-500.0,0.0001027,2]
[352367553,1739064645323,-500.0,0.0001027,2]
[352367554,1739064645332,-500.0,0.0001027,2]
[352367555,1739064645341,-500.0,0.0001027,2]
[352367556,1739064645350,-500.0,0.0001027,2]
[352367557,1739064645359,-500.0,0.0001027,2]
[352367558,1739064645369,-500.0,0.0001027,2]
[352367559,1739064645378,-500.0,0.0001027,2]
[352367560,1739064645387,-500.0,0.0001027,2]
[352367561,1739064645397,-505.24223681,0.0001027,2]
[352367562,1739064645408,-500.0,0.0001027,2]
[352367563,1739064645417,-500.0,0.0001027,2]
[352367564,1739064645427,-500.0,0.0001027,2]
[352367565,1739064645435,-500.0,0.0001027,2]
[352367566,1739064645445,-500.0,0.0001027,2]
[352367567,1739064645454,-500.0,0.0001027,2]
[352367568,1739064645463,-498.8982,0.0001027,2]
[352367569,1739064645472,-500.0,0.0001027,2]
[352367570,1739064645483,-500.0,0.0001027,2]
[352367571,1739064645492,-500.0,0.0001027,2]
[352367572,1739064645502,-500.0,0.0001027,2]
[352367573,1739064645512,-500.0,0.0001027,2]
[352367574,1739064645523,-500.0,0.0001027,2]
[352367575,1739064645533,-500.0,0.0001027,2]
[352367576,1739064645543,-500.0,0.0001027,2]
[352367577,1739064645553,-507.46219776,0.0001027,2]
[352367578,1739064645562,-500.0,0.0001027,2]
[352367579,1739064645571,-500.0,0.0001027,2]
[352367580,1739064645580,-500.0,0.0001027,2]
[352367582,1739064645589,-500.0,0.0001027,2]
[352367584,1739064645599,-500.0,0.0001027,2]
[352367585,1739064645608,-500.0,0.0001027,2]
[352367587,1739064645618,-500.0,0.0001027,2]
[352367589,1739064645627,-500.0,0.0001027,2]
[352367590,1739064645637,-500.0,0.0001027,2]
[352367591,1739064645647,-500.0,0.0001027,2]
[352367592,1739064645658,-585.94741323,0.0001027,2]
[352367593,1739064645667,-523.11747787,0.0001027,2]
[352367594,1739064645676,-500.0,0.0001027,2]
[352367595,1739064645689,-500.0,0.0001027,2]
[352367596,1739064645698,-500.0,0.0001027,2]
[352367597,1739064645708,-601.85514606,0.0001027,2]
[352367598,1739064645718,-500.0,0.0001027,2]
[352367599,1739064645727,-500.0,0.0001027,2]
[352367600,1739064645736,-500.0,0.0001027,2]
[352367601,1739064645747,-500.0,0.0001027,2]
[352367602,1739064645758,-500.0,0.0001027,2]
[352367603,1739064645768,-500.0,0.0001027,2]
[352367604,1739064645779,-500.0,0.0001027,2]
[352367605,1739064645788,-500.0,0.0001027,2]
[352367606,1739064645797,-500.0,0.0001027,2]
[352367607,1739064645806,-500.0,0.0001027,2]
[352367608,1739064645816,-502.51130787,0.0001027,2]
[352367609,1739064645825,-500.0,0.0001027,2]
[352367610,1739064645836,-500.0,0.0001027,2]
[352367611,1739064645846,-500.0,0.0001027,2]
[352367612,1739064645855,-500.0,0.0001027,2]
[352367613,1739064645864,-500.0,0.0001027,2]
[352367614,1739064645873,-500.0,0.0001027,2]
[352367615,1739064645882,-500.0,0.0001027,2]
[352367616,1739064645891,-500.0,0.0001027,2]
[352367617,1739064645900,-500.0,0.0001027,2]
[352367618,1739064645910,-500.0,0.0001027,2]
[352367619,1739064645919,-500.0,0.0001027,2]
[352367620,1739064645928,-500.0,0.0001027,2]
[352367621,1739064645937,-500.0,0.0001027,2]
[352367622,1739064645947,-500.0,0.0001027,2]
[352367623,1739064645957,-500.0,0.0001027,2]
[352367624,1739064645967,-500.0,0.0001027,2]
[352367625,1739064645975,-189.97726562,0.0001027,2]
[352367626,1739064645984,-500.0,0.0001027,2]
[352367627,1739064645993,-500.0,0.0001027,2]
[352367628,1739064646002,-500.0,0.0001027,2]
[352367629,1739064646011,-500.0,0.0001027,2]
[352367630,1739064646021,-500.0,0.0001027,2]
[352367631,1739064646032,-500.0,0.0001027,2]
[352367632,1739064646043,-500.0,0.0001027,2]
[352367633,1739064646053,-500.0,0.0001027,2]
[352367634,1739064646063,-500.0,0.0001027,2]
[352367635,1739064646072,-500.0,0.0001027,2]
[352367636,1739064646082,-500.0,0.0001027,2]
[352367637,1739064646092,-380.26494835,0.0001027,2]
[352367639,1739064646102,-500.0,0.0001027,2]
[352367641,1739064646110,-500.0,0.0001027,2]
[352367642,1739064646119,-500.0,0.0001027,2]
[352367644,1739064646128,-500.0,0.0001027,2]
[352367647,1739064646137,-500.0,0.0001027,2]
[352367648,1739064646148,-500.0,0.0001027,2]
[352367651,1739064646158,-500.0,0.0001027,2]
[352367653,1739064646168,-500.0,0.0001027,2]
[352367655,1739064646177,-500.0,0.0001027,2]
[352367658,1739064646186,-500.0,0.0001027,2]
[352367659,1739064646195,-500.0,0.0001027,2]
[352367661,1739064646204,-500.0,0.0001027,2]
[352367663,1739064646213,-164.82935765,0.0001027,2]
[352367665,1739064646222,-500.0,0.0001027,2]
[352367668,1739064646232,-633.17848736,0.0001027,2]
[352367670,1739064646241,-503.35490683,0.0001027,2]
[352367671,1739064646252,-500.0,0.0001027,2]
[352367674,1739064646261,-500.0,0.0001027,2]